[Event "*** Titled Tuesday Blitz"]
[Site "Chess.com"]
[Date "2020.04.07"]
[Round "9"]
[White "Viuvanegra"]
[Black "cukin84"]
[Result "0-1"]
[WhiteElo "1957"]
[BlackElo "2107"]
[TimeControl "180+1"]
[EndTime "14:47:40 PDT"]
[Termination "cukin84 won on time"]

1. d4 {[%clk 0:02:58.9]} 1... f5 {[%clk 0:02:59]} 2. e4 {[%clk 0:02:55.4]} 2...
fxe4 {[%clk 0:02:58.5]} 3. Nc3 {[%clk 0:02:54.5]} 3... Nf6 {[%clk 0:02:58]} 4.
Bg5 {[%clk 0:02:51.6]} 4... g6 {[%clk 0:02:54.8]} 5. Bxf6 {[%clk 0:02:39.3]}
5... exf6 {[%clk 0:02:54.6]} 6. Nxe4 {[%clk 0:02:38.2]} 6... Bg7 {[%clk
0:02:54.7]} 7. c3 {[%clk 0:02:24.5]} 7... d5 {[%clk 0:02:53.7]} 8. Ng3 {[%clk
0:02:21.2]} 8... O-O {[%clk 0:02:52.9]} 9. Be2 {[%clk 0:02:20.7]} 9... c6 {[%clk
0:02:50.5]} 10. Nf3 {[%clk 0:02:19.1]} 10... Re8 {[%clk 0:02:48.1]} 11. Qd2
{[%clk 0:02:16.3]} 11... Nd7 {[%clk 0:02:44.4]} 12. O-O-O {[%clk 0:02:15.1]}
12... b5 {[%clk 0:02:42.9]} 13. h4 {[%clk 0:02:11.8]} 13... Nf8 {[%clk
0:02:40.8]} 14. h5 {[%clk 0:02:11]} 14... a5 {[%clk 0:02:38.3]} 15. hxg6 {[%clk
0:02:01.6]} 15... hxg6 {[%clk 0:02:38]} 16. Bd3 {[%clk 0:01:55.9]} 16... Qd6
{[%clk 0:02:34.4]} 17. Nh4 {[%clk 0:01:41.6]} 17... f5 {[%clk 0:02:26.7]} 18.
Nf3 {[%clk 0:01:39.2]} 18... b4 {[%clk 0:02:22.9]} 19. c4 {[%clk 0:01:35]} 19...
dxc4 {[%clk 0:02:14.1]} 20. Bxc4+ {[%clk 0:01:34.5]} 20... Be6 {[%clk
0:02:14.2]} 21. Bxe6+ {[%clk 0:01:14.4]} 21... Nxe6 {[%clk 0:02:08.4]} 22. Ne5
{[%clk 0:01:08.7]} 22... Nxd4 {[%clk 0:02:00.9]} 23. Qxd4 {[%clk 0:01:00.4]}
23... Qxd4 {[%clk 0:01:58.3]} 24. Rxd4 {[%clk 0:01:00.3]} 24... Bxe5 {[%clk
0:01:54.6]} 25. Rc4 {[%clk 0:01:00]} 25... Rac8 {[%clk 0:01:51.5]} 26. f4 {[%clk
0:00:58.4]} 26... Bf6 {[%clk 0:01:47.4]} 27. Rd1 {[%clk 0:00:54.6]} 27... Re3
{[%clk 0:01:46.3]} 28. Nf1 {[%clk 0:00:53.7]} 28... Re2 {[%clk 0:01:45.5]} 29.
Rd2 {[%clk 0:00:47.2]} 29... Re1+ {[%clk 0:01:44.4]} 30. Rd1 {[%clk 0:00:47.1]}
30... Re2 {[%clk 0:01:44.1]} 31. Rd2 {[%clk 0:00:47.2]} 31... Re1+ {[%clk
0:01:34.2]} 32. Rd1 {[%clk 0:00:47.3]} 32... Re4 {[%clk 0:01:34.3]} 33. Rc5
{[%clk 0:00:34.4]} 33... a4 {[%clk 0:01:29.6]} 34. g3 {[%clk 0:00:33.3]} 34...
a3 {[%clk 0:01:28.9]} 35. b3 {[%clk 0:00:30.9]} 35... Re2 {[%clk 0:01:25.7]} 36.
Rd2 {[%clk 0:00:27.4]} 36... Re4 {[%clk 0:01:14.9]} 37. Kc2 {[%clk 0:00:23.5]}
37... Bc3 {[%clk 0:01:13.7]} 38. Rh2 {[%clk 0:00:18.8]} 38... Re1 {[%clk
0:01:06.9]} 39. Nd2 {[%clk 0:00:17.9]} 39... Ra1 {[%clk 0:01:04.9]} 40. Rh6
{[%clk 0:00:13.5]} 40... Kg7 {[%clk 0:01:03.4]} 41. Rh2 {[%clk 0:00:12.9]} 41...
Rxa2+ {[%clk 0:01:02.7]} 42. Kc1 {[%clk 0:00:13.2]} 42... Bxd2+ {[%clk
0:01:01.4]} 43. Rxd2 {[%clk 0:00:13]} 43... Rxd2 {[%clk 0:01:01.1]} 44. Kxd2
{[%clk 0:00:13.5]} 44... Ra8 {[%clk 0:00:59.4]} 45. Rc1 {[%clk 0:00:12.4]} 45...
a2 {[%clk 0:00:58.2]} 46. Ra1 {[%clk 0:00:12.4]} 46... Kf6 {[%clk 0:00:56.8]}
47. Kd3 {[%clk 0:00:12.4]} 47... Ke6 {[%clk 0:00:57]} 48. Kc4 {[%clk 0:00:12.5]}
48... Kd6 {[%clk 0:00:56.8]} 49. Kxb4 {[%clk 0:00:12.4]} 49... Kd5 {[%clk
0:00:57]} 50. Kc3 {[%clk 0:00:12.2]} 50... c5 {[%clk 0:00:56.5]} 51. Rd1+ {[%clk
0:00:11.7]} 51... Ke4 {[%clk 0:00:56.4]} 52. Ra1 {[%clk 0:00:10.4]} 52... Kf3
{[%clk 0:00:56]} 53. Kc4 {[%clk 0:00:09.6]} 53... Ra5 {[%clk 0:00:55]} 54. Kd5
{[%clk 0:00:04.5]} 54... Kxg3 {[%clk 0:00:53.7]} 55. Ke6 {[%clk 0:00:03.9]}
55... Kxf4 {[%clk 0:00:53.8]} 56. Kf6 {[%clk 0:00:04]} 56... Ke4 {[%clk
0:00:54.1]} 0-1

[Event "*** Titled Tuesday Blitz"]
[Site "Chess.com"]
[Date "2020.04.07"]
[Round "9"]
[White "THORK"]
[Black "DryCounty"]
[Result "0-1"]
[WhiteElo "2367"]
[BlackElo "2605"]
[TimeControl "180+1"]
[EndTime "14:47:41 PDT"]
[Termination "DryCounty won on time"]

1. d4 {[%clk 0:03:00.9]} 1... Nf6 {[%clk 0:02:59.4]} 2. Nd2 {[%clk 0:02:57.3]}
2... c5 {[%clk 0:02:55.3]} 3. dxc5 {[%clk 0:02:54.3]} 3... e6 {[%clk 0:02:53.9]}
4. Nb3 {[%clk 0:02:53.7]} 4... Na6 {[%clk 0:02:51.5]} 5. e3 {[%clk 0:02:47.9]}
5... Nxc5 {[%clk 0:02:50.8]} 6. Nxc5 {[%clk 0:02:48.2]} 6... Bxc5 {[%clk
0:02:51.4]} 7. Nf3 {[%clk 0:02:48.3]} 7... O-O {[%clk 0:02:50.6]} 8. a3 {[%clk
0:02:44.7]} 8... d5 {[%clk 0:02:50.7]} 9. c4 {[%clk 0:02:44.4]} 9... dxc4 {[%clk
0:02:45.7]} 10. Qxd8 {[%clk 0:02:39.4]} 10... Rxd8 {[%clk 0:02:46.6]} 11. Bxc4
{[%clk 0:02:39.6]} 11... b6 {[%clk 0:02:36.8]} 12. b4 {[%clk 0:02:39.7]} 12...
Be7 {[%clk 0:02:35.4]} 13. Bb2 {[%clk 0:02:39.2]} 13... Bb7 {[%clk 0:02:32]} 14.
O-O {[%clk 0:02:30.3]} 14... Rac8 {[%clk 0:02:29.8]} 15. Rac1 {[%clk 0:02:30.5]}
15... a5 {[%clk 0:02:07.8]} 16. bxa5 {[%clk 0:02:22.5]} 16... bxa5 {[%clk
0:02:08.7]} 17. a4 {[%clk 0:02:21.4]} 17... Nd5 {[%clk 0:01:55.3]} 18. Rfd1
{[%clk 0:02:17.5]} 18... Bb4 {[%clk 0:01:30.3]} 19. Bb5 {[%clk 0:02:08.7]} 19...
h6 {[%clk 0:01:24.1]} 20. h3 {[%clk 0:02:07.5]} 20... Rxc1 {[%clk 0:00:56.9]}
21. Rxc1 {[%clk 0:02:06.4]} 21... Rc8 {[%clk 0:00:57.3]} 22. Rxc8+ {[%clk
0:01:59.6]} 22... Bxc8 {[%clk 0:00:58.2]} 23. Kf1 {[%clk 0:01:41.9]} 23... Nc3
{[%clk 0:00:52.6]} 24. Bc6 {[%clk 0:01:22.4]} 24... Ba6+ {[%clk 0:00:51.1]} 25.
Kg1 {[%clk 0:01:22]} 25... Bc4 {[%clk 0:00:42.2]} 26. Nd4 {[%clk 0:01:15.3]}
26... Nd1 {[%clk 0:00:35.4]} 27. Ba1 {[%clk 0:01:12.4]} 27... Be1 {[%clk
0:00:34.7]} 28. Bb5 {[%clk 0:00:56.2]} 28... Bxf2+ {[%clk 0:00:33.5]} 29. Kh2
{[%clk 0:00:56.5]} 29... Nxe3 {[%clk 0:00:28.7]} 30. Bxc4 {[%clk 0:00:26.3]}
30... Nxc4 {[%clk 0:00:29.6]} 31. Nc6 {[%clk 0:00:27.2]} 31... Be1 {[%clk
0:00:25.8]} 32. Bd4 {[%clk 0:00:25.7]} 32... f6 {[%clk 0:00:25.5]} 33. g4 {[%clk
0:00:25.3]} 33... e5 {[%clk 0:00:25.4]} 34. Bc5 {[%clk 0:00:25.7]} 34... Kf7
{[%clk 0:00:25.6]} 35. Kg2 {[%clk 0:00:26]} 35... Ke6 {[%clk 0:00:25.5]} 36. Bf8
{[%clk 0:00:23.6]} 36... g5 {[%clk 0:00:23.1]} 37. Bxh6 {[%clk 0:00:22.7]} 37...
Nb2 {[%clk 0:00:21.8]} 38. Bf8 {[%clk 0:00:20.8]} 38... Nxa4 {[%clk 0:00:20.9]}
39. Kf1 {[%clk 0:00:20.1]} 39... Bc3 {[%clk 0:00:20.3]} 40. Ke2 {[%clk 0:00:19]}
40... Nb2 {[%clk 0:00:20.3]} 41. Na7 {[%clk 0:00:14]} 41... a4 {[%clk
0:00:19.3]} 42. Nb5 {[%clk 0:00:14.4]} 42... Bd4 {[%clk 0:00:18.8]} 43. Kd2
{[%clk 0:00:07.1]} 43... Kd5 {[%clk 0:00:18.2]} 44. Kc2 {[%clk 0:00:05.7]} 44...
Nc4 {[%clk 0:00:17.8]} 45. Kd3 {[%clk 0:00:04.3]} 45... e4+ {[%clk 0:00:16.4]}
46. Ke2 {[%clk 0:00:03.6]} 46... Be5 {[%clk 0:00:15.8]} 47. Bb4 {[%clk
0:00:01.7]} 47... Kc6 {[%clk 0:00:15.4]} 0-1

[Event "*** Titled Tuesday Blitz"]
[Site "Chess.com"]
[Date "2020.04.07"]
[Round "9"]
[White "adiosabu"]
[Black "SamuelGhimpu2003"]
[Result "0-1"]
[WhiteElo "2498"]
[BlackElo "2672"]
[TimeControl "180+1"]
[EndTime "14:47:41 PDT"]
[Termination "SamuelGhimpu2003 won on time"]

1. e4 {[%clk 0:03:00.9]} 1... e6 {[%clk 0:02:59.8]} 2. d4 {[%clk 0:03:00.2]}
2... d5 {[%clk 0:02:59.6]} 3. Nc3 {[%clk 0:03:00.8]} 3... Nf6 {[%clk 0:02:59.1]}
4. Bg5 {[%clk 0:02:59.6]} 4... dxe4 {[%clk 0:02:58.9]} 5. Nxe4 {[%clk 0:02:59]}
5... Nbd7 {[%clk 0:02:59.1]} 6. Nf3 {[%clk 0:02:58.3]} 6... h6 {[%clk
0:02:58.5]} 7. Nxf6+ {[%clk 0:02:49.4]} 7... Nxf6 {[%clk 0:02:59.4]} 8. Bf4
{[%clk 0:02:49.7]} 8... Bd6 {[%clk 0:02:29.3]} 9. Ne5 {[%clk 0:02:43.1]} 9...
Nd5 {[%clk 0:02:25.2]} 10. Bg3 {[%clk 0:02:37.6]} 10... O-O {[%clk 0:02:19.3]}
11. Bd3 {[%clk 0:02:31]} 11... f5 {[%clk 0:02:07.6]} 12. Qe2 {[%clk 0:01:37.1]}
12... f4 {[%clk 0:02:00.1]} 13. Qe4 {[%clk 0:01:35.7]} 13... Rf5 {[%clk
0:01:57.3]} 14. c4 {[%clk 0:01:26.7]} 14... Nb4 {[%clk 0:01:46.6]} 15. Bb1
{[%clk 0:01:12.6]} 15... fxg3 {[%clk 0:01:40.9]} 16. hxg3 {[%clk 0:01:12.4]}
16... Bxe5 {[%clk 0:01:39.6]} 17. dxe5 {[%clk 0:01:08.4]} 17... Nc6 {[%clk
0:01:27.6]} 18. f4 {[%clk 0:01:04.3]} 18... Qd4 {[%clk 0:01:22.8]} 19. Qxd4
{[%clk 0:01:01.7]} 19... Nxd4 {[%clk 0:01:23.7]} 20. Bxf5 {[%clk 0:01:01.7]}
20... exf5 {[%clk 0:01:22.3]} 21. Rd1 {[%clk 0:00:52.1]} 21... c5 {[%clk
0:01:21.8]} 22. Kf2 {[%clk 0:00:48.7]} 22... Be6 {[%clk 0:01:21]} 23. b3 {[%clk
0:00:47.8]} 23... b6 {[%clk 0:01:20.7]} 24. Ke3 {[%clk 0:00:47]} 24... a5 {[%clk
0:01:18.7]} 25. Rd2 {[%clk 0:00:43.6]} 25... Kf7 {[%clk 0:01:18.4]} 26. Rb1
{[%clk 0:00:40]} 26... Ke7 {[%clk 0:01:15.4]} 27. a3 {[%clk 0:00:37.9]} 27...
Kd7 {[%clk 0:00:40.8]} 28. Rbb2 {[%clk 0:00:19.4]} 28... Kc6 {[%clk 0:00:36.4]}
29. a4 {[%clk 0:00:18.9]} 29... g5 {[%clk 0:00:19.3]} 30. Rb1 {[%clk 0:00:16.6]}
30... Rg8 {[%clk 0:00:19.2]} 31. Rh1 {[%clk 0:00:15.5]} 31... Rg6 {[%clk
0:00:19.5]} 32. Rd3 {[%clk 0:00:13.3]} 32... Kc7 {[%clk 0:00:15.4]} 33. Kf2
{[%clk 0:00:12.3]} 33... Bd7 {[%clk 0:00:15.4]} 34. fxg5 {[%clk 0:00:11.3]}
34... hxg5 {[%clk 0:00:16.3]} 35. Rh7 {[%clk 0:00:11]} 35... Kd8 {[%clk
0:00:16.5]} 36. g4 {[%clk 0:00:10.1]} 36... fxg4 {[%clk 0:00:14.4]} 37. Kg3
{[%clk 0:00:10.3]} 37... Re6 {[%clk 0:00:12.6]} 38. Rh8+ {[%clk 0:00:08.6]}
38... Kc7 {[%clk 0:00:12.4]} 39. Kxg4 {[%clk 0:00:08.3]} 39... Re8+ {[%clk
0:00:11.7]} 40. Kxg5 {[%clk 0:00:08]} 40... Rxh8 {[%clk 0:00:11.6]} 41. Kf6
{[%clk 0:00:08.1]} 41... Rf8+ {[%clk 0:00:11.7]} 42. Ke7 {[%clk 0:00:08.3]}
42... Rg8 {[%clk 0:00:11.2]} 43. Kf7 {[%clk 0:00:08.5]} 43... Rxg2 {[%clk
0:00:10.8]} 44. Re3 {[%clk 0:00:07.7]} 44... Rf2+ {[%clk 0:00:10.9]} 45. Ke7
{[%clk 0:00:07.5]} 45... Nf5+ {[%clk 0:00:10.4]} 46. Kf6 {[%clk 0:00:08]} 46...
Nxe3+ {[%clk 0:00:11.3]} 0-1

[Event "*** Titled Tuesday Blitz"]
[Site "Chess.com"]
[Date "2020.04.07"]
[Round "9"]
[White "karinachess1"]
[Black "Galileo22"]
[Result "0-1"]
[WhiteElo "2497"]
[BlackElo "2350"]
[TimeControl "180+1"]
[EndTime "14:47:42 PDT"]
[Termination "Galileo22 won on time"]

1. Nf3 {[%clk 0:03:00.9]} 1... d5 {[%clk 0:02:57]} 2. c4 {[%clk 0:02:59.4]} 2...
e6 {[%clk 0:02:51.7]} 3. g3 {[%clk 0:02:58.8]} 3... Nf6 {[%clk 0:02:51.7]} 4.
Bg2 {[%clk 0:02:58.7]} 4... Be7 {[%clk 0:02:41.4]} 5. O-O {[%clk 0:02:57.9]}
5... O-O {[%clk 0:02:41]} 6. b3 {[%clk 0:02:56.1]} 6... d4 {[%clk 0:02:37.4]} 7.
e3 {[%clk 0:02:51.7]} 7... c5 {[%clk 0:02:36.9]} 8. exd4 {[%clk 0:02:50.7]} 8...
cxd4 {[%clk 0:02:36.9]} 9. d3 {[%clk 0:02:50]} 9... Nc6 {[%clk 0:02:36.3]} 10.
Re1 {[%clk 0:02:46.4]} 10... Nd7 {[%clk 0:02:20.5]} 11. Na3 {[%clk 0:02:41.3]}
11... e5 {[%clk 0:01:53.6]} 12. Nc2 {[%clk 0:02:41.1]} 12... f6 {[%clk
0:01:48.4]} 13. a3 {[%clk 0:02:38]} 13... a5 {[%clk 0:01:43.1]} 14. Rb1 {[%clk
0:02:38.1]} 14... Nc5 {[%clk 0:01:33]} 15. b4 {[%clk 0:02:21.8]} 15... Na4
{[%clk 0:01:27.2]} 16. Bd2 {[%clk 0:02:20.9]} 16... Qd7 {[%clk 0:01:09.9]} 17.
b5 {[%clk 0:02:05.8]} 17... Nd8 {[%clk 0:01:08.1]} 18. Nh4 {[%clk 0:01:39.8]}
18... g5 {[%clk 0:00:58.1]} 19. Nf3 {[%clk 0:01:30.1]} 19... Bd6 {[%clk
0:00:52]} 20. Ncxd4 {[%clk 0:01:22.3]} 20... Nc5 {[%clk 0:00:46.5]} 21. Nb3
{[%clk 0:01:08.7]} 21... Nxd3 {[%clk 0:00:42.9]} 22. Re3 {[%clk 0:01:04.7]}
22... Nc5 {[%clk 0:00:38.2]} 23. Be1 {[%clk 0:00:58.5]} 23... a4 {[%clk
0:00:33.5]} 24. Nxc5 {[%clk 0:00:45.6]} 24... Bxc5 {[%clk 0:00:34.4]} 25. Rd3
{[%clk 0:00:46.5]} 25... Qe7 {[%clk 0:00:28.1]} 26. Bb4 {[%clk 0:00:25.4]} 26...
Bf5 {[%clk 0:00:27.3]} 27. Bxc5 {[%clk 0:00:24.1]} 27... Qxc5 {[%clk 0:00:25.7]}
28. Rd5 {[%clk 0:00:24.7]} 28... Qxa3 {[%clk 0:00:24.9]} 29. Rc1 {[%clk
0:00:23.4]} 29... Qe7 {[%clk 0:00:20.4]} 30. c5 {[%clk 0:00:21.5]} 30... Nf7
{[%clk 0:00:18.8]} 31. c6 {[%clk 0:00:20.5]} 31... bxc6 {[%clk 0:00:18.8]} 32.
bxc6 {[%clk 0:00:21.4]} 32... Be6 {[%clk 0:00:18.9]} 33. Rdc5 {[%clk 0:00:20.6]}
33... a3 {[%clk 0:00:19.1]} 34. c7 {[%clk 0:00:20.6]} 34... a2 {[%clk
0:00:17.7]} 35. Nd2 {[%clk 0:00:18.2]} 35... Rac8 {[%clk 0:00:16.3]} 36. Bb7
{[%clk 0:00:17.1]} 36... Nd6 {[%clk 0:00:12.7]} 37. Bxc8 {[%clk 0:00:17]} 37...
Rxc8 {[%clk 0:00:13.6]} 38. Qa4 {[%clk 0:00:16.3]} 38... Kf7 {[%clk 0:00:12.2]}
39. Nb3 {[%clk 0:00:15.3]} 39... Ne4 {[%clk 0:00:09.3]} 40. Qxe4 {[%clk
0:00:13.2]} 40... Bxb3 {[%clk 0:00:09.4]} 41. Qxh7+ {[%clk 0:00:12.8]} 41... Ke8
{[%clk 0:00:08.6]} 42. Qg8+ {[%clk 0:00:12]} 42... Bxg8 {[%clk 0:00:07.7]} 0-1

[Event "*** Titled Tuesday Blitz"]
[Site "Chess.com"]
[Date "2020.04.07"]
[Round "9"]
[White "Kumi29"]
[Black "silverback96"]
[Result "1-0"]
[WhiteElo "2447"]
[BlackElo "2151"]
[TimeControl "180+1"]
[EndTime "14:47:43 PDT"]
[Termination "Kumi29 won by resignation"]

1. d4 {[%clk 0:03:00.9]} 1... Nf6 {[%clk 0:02:58.7]} 2. Bg5 {[%clk 0:03:00.3]}
2... d5 {[%clk 0:02:57.4]} 3. Bxf6 {[%clk 0:03:00.1]} 3... exf6 {[%clk
0:02:58.2]} 4. e3 {[%clk 0:03:01]} 4... Bd6 {[%clk 0:02:58.2]} 5. Bd3 {[%clk
0:03:00.9]} 5... O-O {[%clk 0:02:57.5]} 6. Nd2 {[%clk 0:03:01.4]} 6... f5 {[%clk
0:02:52.4]} 7. Qf3 {[%clk 0:03:01]} 7... f4 {[%clk 0:02:08.1]} 8. exf4 {[%clk
0:02:59.5]} 8... Nc6 {[%clk 0:01:40]} 9. Ne2 {[%clk 0:02:57]} 9... Qf6 {[%clk
0:01:38.2]} 10. c3 {[%clk 0:02:53]} 10... Ne7 {[%clk 0:01:38.4]} 11. O-O {[%clk
0:02:48.9]} 11... Bf5 {[%clk 0:01:37.4]} 12. Bxf5 {[%clk 0:02:44.3]} 12... Qxf5
{[%clk 0:01:38.3]} 13. Rac1 {[%clk 0:02:21.5]} 13... c6 {[%clk 0:01:27.1]} 14.
Rfe1 {[%clk 0:02:20.3]} 14... Rfe8 {[%clk 0:01:25.2]} 15. Nf1 {[%clk 0:02:18.6]}
15... Ng6 {[%clk 0:01:23.5]} 16. Ne3 {[%clk 0:02:14.8]} 16... Qe4 {[%clk
0:01:21.5]} 17. Qxe4 {[%clk 0:02:12]} 17... Rxe4 {[%clk 0:01:22.4]} 18. g3
{[%clk 0:02:10.7]} 18... Rae8 {[%clk 0:01:22.5]} 19. Kg2 {[%clk 0:01:49.9]}
19... Bc7 {[%clk 0:01:16.3]} 20. Ng1 {[%clk 0:01:49.5]} 20... f6 {[%clk
0:01:04.5]} 21. Nf3 {[%clk 0:01:49.2]} 21... Kf7 {[%clk 0:01:03.2]} 22. Nf5
{[%clk 0:01:43.5]} 22... Rxe1 {[%clk 0:01:04.1]} 23. Rxe1 {[%clk 0:01:43.6]}
23... Rxe1 {[%clk 0:01:04.4]} 24. Nxe1 {[%clk 0:01:44.5]} 24... Nf8 {[%clk
0:00:59.1]} 25. Nd3 {[%clk 0:01:42.3]} 25... Nd7 {[%clk 0:00:57.4]} 26. Kf3
{[%clk 0:01:38]} 26... Kg6 {[%clk 0:00:52.8]} 27. Ne3 {[%clk 0:01:34.7]} 27...
Kf7 {[%clk 0:00:52.8]} 28. g4 {[%clk 0:01:30.1]} 28... Ke6 {[%clk 0:00:52.8]}
29. Nc5+ {[%clk 0:01:14.6]} 29... Nxc5 {[%clk 0:00:51]} 30. dxc5 {[%clk
0:01:15.5]} 30... g6 {[%clk 0:00:51]} 31. Nc2 {[%clk 0:01:15.5]} 31... Kf7
{[%clk 0:00:47]} 32. Nd4 {[%clk 0:01:14.4]} 32... a5 {[%clk 0:00:39.5]} 33. b4
{[%clk 0:01:11.2]} 33... Bb8 {[%clk 0:00:35.5]} 34. a4 {[%clk 0:00:51.4]} 34...
Ba7 {[%clk 0:00:33.9]} 35. h3 {[%clk 0:00:43.6]} 35... h6 {[%clk 0:00:32.6]} 36.
f5 {[%clk 0:00:41.9]} 36... gxf5 {[%clk 0:00:28.7]} 37. Nxf5 {[%clk 0:00:39.8]}
37... b6 {[%clk 0:00:20.7]} 38. cxb6 {[%clk 0:00:35.6]} 38... Bxb6 {[%clk
0:00:21.6]} 39. Nxh6+ {[%clk 0:00:35.7]} 39... Kg6 {[%clk 0:00:22.1]} 40. Nf5
{[%clk 0:00:35.9]} 40... c5 {[%clk 0:00:15.8]} 41. Ne7+ {[%clk 0:00:31]} 41...
Kf7 {[%clk 0:00:16.3]} 42. Nxd5 {[%clk 0:00:30.7]} 42... cxb4 {[%clk 0:00:16.8]}
43. Nxb6 {[%clk 0:00:26.9]} 43... bxc3 {[%clk 0:00:17.2]} 44. Ke3 {[%clk
0:00:22.6]} 44... c2 {[%clk 0:00:18.1]} 45. Kd2 {[%clk 0:00:22.2]} 45... c1=Q+
{[%clk 0:00:19]} 46. Kxc1 {[%clk 0:00:22.1]} 1-0

[Event "*** Titled Tuesday Blitz"]
[Site "Chess.com"]
[Date "2020.04.07"]
[Round "9"]
[White "Keranke"]
[Black "Rud_Makarian"]
[Result "0-1"]
[WhiteElo "2782"]
[BlackElo "2642"]
[TimeControl "180+1"]
[EndTime "14:47:45 PDT"]
[Termination "Rud_Makarian won on time"]

1. c4 {[%clk 0:02:41.7]} 1... Nf6 {[%clk 0:02:57.8]} 2. g3 {[%clk 0:02:42]} 2...
e6 {[%clk 0:02:54.9]} 3. Bg2 {[%clk 0:02:41.9]} 3... c5 {[%clk 0:02:55]} 4. Nf3
{[%clk 0:02:42.4]} 4... d5 {[%clk 0:02:55.4]} 5. O-O {[%clk 0:02:42.4]} 5... d4
{[%clk 0:02:54.7]} 6. e3 {[%clk 0:02:41.6]} 6... Nc6 {[%clk 0:02:54]} 7. exd4
{[%clk 0:02:41.3]} 7... cxd4 {[%clk 0:02:54.9]} 8. d3 {[%clk 0:02:40.7]} 8...
Be7 {[%clk 0:02:54.2]} 9. Re1 {[%clk 0:02:41.2]} 9... O-O {[%clk 0:02:54]} 10.
Na3 {[%clk 0:02:41.6]} 10... Ne8 {[%clk 0:02:51.3]} 11. Nc2 {[%clk 0:02:40.6]}
11... a5 {[%clk 0:02:48]} 12. b3 {[%clk 0:02:37.8]} 12... f6 {[%clk 0:02:45.9]}
13. a3 {[%clk 0:02:34.8]} 13... e5 {[%clk 0:02:45.9]} 14. Bb2 {[%clk 0:02:30.6]}
14... Nc7 {[%clk 0:02:34.4]} 15. Nd2 {[%clk 0:02:21.1]} 15... Na6 {[%clk
0:02:26.7]} 16. f4 {[%clk 0:02:04]} 16... Nc5 {[%clk 0:01:46.2]} 17. Ne4 {[%clk
0:01:37.4]} 17... Nxb3 {[%clk 0:01:19]} 18. Rb1 {[%clk 0:01:34.2]} 18... a4
{[%clk 0:01:09.7]} 19. Qh5 {[%clk 0:01:19.1]} 19... f5 {[%clk 0:00:56.8]} 20.
Ng5 {[%clk 0:01:18]} 20... Bxg5 {[%clk 0:00:53.5]} 21. Bd5+ {[%clk 0:01:16.2]}
21... Kh8 {[%clk 0:00:52.4]} 22. fxg5 {[%clk 0:01:16.8]} 22... Ra5 {[%clk
0:00:46.9]} 23. g6 {[%clk 0:01:06.4]} 23... h6 {[%clk 0:00:46.3]} 24. Bf7 {[%clk
0:00:57.9]} 24... e4 {[%clk 0:00:34.6]} 25. Rbd1 {[%clk 0:00:30.8]} 25... Qf6
{[%clk 0:00:16.4]} 26. Ne3 {[%clk 0:00:25.1]} 26... Qg5 {[%clk 0:00:13.8]} 27.
Qxg5 {[%clk 0:00:23.6]} 27... hxg5 {[%clk 0:00:14.7]} 28. Nd5 {[%clk 0:00:23.1]}
28... e3 {[%clk 0:00:11]} 29. h4 {[%clk 0:00:19.8]} 29... g4 {[%clk 0:00:09.1]}
30. Kg2 {[%clk 0:00:18.5]} 30... Ne5 {[%clk 0:00:09.4]} 31. Nxe3 {[%clk
0:00:13.8]} 31... dxe3 {[%clk 0:00:09.2]} 32. Rxe3 {[%clk 0:00:13.3]} 32... Nxf7
{[%clk 0:00:07.5]} 33. gxf7 {[%clk 0:00:14.2]} 33... Rxf7 {[%clk 0:00:03.5]} 34.
Re8+ {[%clk 0:00:14.3]} 34... Kh7 {[%clk 0:00:04]} 35. Rxc8 {[%clk 0:00:14.9]}
35... f4 {[%clk 0:00:01.5]} 36. gxf4 {[%clk 0:00:15.3]} 36... Rxf4 {[%clk
0:00:02.4]} 37. Rc7 {[%clk 0:00:12.8]} 37... Nd4 {[%clk 0:00:02.7]} 38. Rxb7
{[%clk 0:00:07]} 38... Nf5 {[%clk 0:00:02.9]} 39. Re1 {[%clk 0:00:05.3]} 39...
Rf3 {[%clk 0:00:02.7]} 0-1

[Event "*** Titled Tuesday Blitz"]
[Site "Chess.com"]
[Date "2020.04.07"]
[Round "9"]
[White "W_Amadeus"]
[Black "Atanejhad"]
[Result "1-0"]
[WhiteElo "2729"]
[BlackElo "2519"]
[TimeControl "180+1"]
[EndTime "14:47:45 PDT"]
[Termination "W_Amadeus won on time"]

1. e4 {[%clk 0:03:00.9]} 1... e5 {[%clk 0:02:56.7]} 2. Nf3 {[%clk 0:03:01.2]}
2... Nc6 {[%clk 0:02:56.8]} 3. Bc4 {[%clk 0:03:01.6]} 3... Bc5 {[%clk
0:02:54.9]} 4. O-O {[%clk 0:03:01.1]} 4... Nf6 {[%clk 0:02:54.4]} 5. d3 {[%clk
0:03:00.7]} 5... d6 {[%clk 0:02:51.9]} 6. c3 {[%clk 0:03:00.6]} 6... a6 {[%clk
0:02:52.2]} 7. a4 {[%clk 0:03:00.3]} 7... Ba7 {[%clk 0:02:52.3]} 8. Re1 {[%clk
0:03:00.1]} 8... O-O {[%clk 0:02:48.4]} 9. h3 {[%clk 0:02:59.8]} 9... Ne7 {[%clk
0:02:45.1]} 10. d4 {[%clk 0:02:58.2]} 10... Ng6 {[%clk 0:02:45]} 11. Nbd2 {[%clk
0:02:57.6]} 11... h6 {[%clk 0:02:27.7]} 12. Bd3 {[%clk 0:02:46.5]} 12... Re8
{[%clk 0:02:25.9]} 13. Bc2 {[%clk 0:02:45.7]} 13... c6 {[%clk 0:02:10.3]} 14.
Nf1 {[%clk 0:02:38.5]} 14... Qc7 {[%clk 0:02:08]} 15. Ng3 {[%clk 0:02:34.3]}
15... b5 {[%clk 0:01:49.8]} 16. Be3 {[%clk 0:02:07.2]} 16... Be6 {[%clk
0:01:30.3]} 17. Qd2 {[%clk 0:01:49.7]} 17... Kh7 {[%clk 0:01:14.8]} 18. axb5
{[%clk 0:01:11.8]} 18... axb5 {[%clk 0:01:12.5]} 19. Nf5 {[%clk 0:01:12.1]}
19... Ng8 {[%clk 0:00:43.9]} 20. d5 {[%clk 0:00:32.3]} 20... Bxe3 {[%clk
0:00:42.6]} 21. Qxe3 {[%clk 0:00:25.9]} 21... cxd5 {[%clk 0:00:41.1]} 22. exd5
{[%clk 0:00:25.3]} 22... Bxd5 {[%clk 0:00:39.1]} 23. Rad1 {[%clk 0:00:23.8]}
23... Bxf3 {[%clk 0:00:35.4]} 24. Qxf3 {[%clk 0:00:24.7]} 24... Ra2 {[%clk
0:00:31.3]} 25. Nxd6 {[%clk 0:00:20.5]} 25... Re7 {[%clk 0:00:30.6]} 26. Nxb5
{[%clk 0:00:13.2]} 26... Qb8 {[%clk 0:00:15.2]} 27. Nd6 {[%clk 0:00:05.8]} 27...
Rxb2 {[%clk 0:00:15]} 28. Bxg6+ {[%clk 0:00:05]} 28... fxg6 {[%clk 0:00:14.6]}
29. Ne4 {[%clk 0:00:05.2]} 29... Qe8 {[%clk 0:00:11.4]} 30. c4 {[%clk
0:00:05.5]} 30... Rf7 {[%clk 0:00:08.9]} 31. Qc3 {[%clk 0:00:06]} 31... Ra2
{[%clk 0:00:06.6]} 32. Nd6 {[%clk 0:00:06.5]} 32... Qd7 {[%clk 0:00:03]} 33.
Nxf7 {[%clk 0:00:06.5]} 33... Qxf7 {[%clk 0:00:02.5]} 34. Qe3 {[%clk 0:00:06.8]}
34... Nf6 {[%clk 0:00:01.9]} 35. c5 {[%clk 0:00:07.2]} 35... e4 {[%clk
0:00:02.5]} 36. c6 {[%clk 0:00:07]} 1-0